bitfinex/quotes_ETHUSD_20260227
["timestamp","ask_amount","ask_price","bid_price","bid_amount"]
[1772216192565,0.48783207,1929.7,1929.1,1.65389227]
[1772216192773,0.48783207,1929.7,1929.1,0.45989227]
[1772216192976,0.48783207,1929.7,1928.9,1.75591416]
[1772216193147,0.48783207,1929.5,1928.7,2.95009197]
[1772216193466,0.48783207,1929.5,1928.8,0.45989227]
[1772216194054,1.2957396,1929.4,1928.9,1.75596775]
[1772216194253,1.2957396,1929.4,1928.9,0.45989227]
[1772216194740,0.48783207,1929.3,1928.7,0.45989227]
[1772216194947,0.48783207,1929.3,1928.7,1.65389227]
[1772216195141,0.48783207,1929.3,1928.7,1.75609711]
[1772216196158,1.783706,1929.2,1928.7,0.45989227]
[1772216196362,1.783706,1929.2,1928.7,2.95009811]
[1772216198974,0.48337192,1929.1,1928.6,0.0011]
[1772216199159,0.48337192,1929.1,1928.6,1.29737046]
[1772216199563,1.29587393,1929.2,1928.7,0.47480381]
[1772216199750,1.77924585,1929.2,1928.7,0.47480381]
[1772216200150,0.45759116,1929.1,1928.6,0.0011]
[1772216200975,0.45759116,1928.8,1928.5,0.0011]
[1772216204988,10.01688118,1929.1,1928.5,0.4947192]
[1772216204989,4.83279444,1929.1,1928.5,0.4947192]
[1772216205174,0.45759116,1929.2,1928.5,0.4947192]
[1772216205782,0.45759116,1929.2,1928.5,0.0011]
[1772216206373,0.45759116,1929.2,1928.5,0.4947192]
[1772216207082,1.29594111,1929.1,1928.6,1.78989629]
[1772216207883,1.75353227,1929.1,1928.6,0.4947192]
[1772216208471,0.45759116,1929.0,1928.6,0.0011]
[1772216209070,1.29600829,1929.0,1928.6,0.0011]
[1772216209486,1.29597349,1929.1,1928.6,0.4947192]
[1772216209866,0.45759116,1929.0,1928.6,0.0011]
[1772216210477,1.29585676,1929.3,1928.6,0.4947192]
[1772216210672,0.45759116,1929.2,1928.6,0.4947192]
[1772216211275,1.29594111,1929.1,1928.6,1.79095782]
[1772216212370,1.29594111,1929.1,1928.6,1.1951]
[1772216212371,0.45759116,1929.0,1928.6,1.1951]
[1772216212570,0.45759116,1929.0,1928.6,2.49136953]
[1772216212791,0.45759116,1929.0,1928.6,0.0011]
[1772216213803,1.7536322,1929.0,1928.6,0.0011]
[1772216213990,1.29599176,1929.1,1928.6,0.4947192]
[1772216215794,1.75358292,1929.1,1928.6,0.4947192]
[1772216216388,0.45759116,1929.0,1928.6,0.0011]
[1772216217890,1.29607548,1928.9,1928.6,0.0011]
[1772216218314,1.2959797,1929.1,1928.6,0.4947192]
[1772216218911,0.45759116,1929.0,1928.5,0.0011]
[1772216219988,0.45759116,1928.8,1928.5,0.0011]
[1772216220915,0.45759116,1928.8,1928.6,0.0011]
[1772216221486,0.45759116,1928.8,1928.3,0.0011]
[1772216221691,0.45759116,1928.6,1928.0,1.298211]
[1772216221918,0.45759116,1928.6,1928.0,1.7918302]
[1772216222104,1.2963443,1928.5,1928.0,1.7918302]
[1772216222507,1.2963443,1928.5,1928.0,0.49515806]
[1772216222691,1.75393546,1928.5,1928.0,0.49515806]
[1772216223018,1.75393546,1928.5,1928.0,1.79183796]
[1772216223727,0.45759116,1928.4,1928.0,0.00153886]
[1772216224022,0.45759116,1928.3,1927.6,1.79056794]
[1772216224323,0.45759116,1928.1,1927.6,0.4936192]
[1772216224517,1.75412039,1928.3,1927.7,0.4936192]
[1772216224819,0.45759116,1928.7,1927.9,0.4936192]
[1772216225287,1.7537113,1928.9,1927.9,0.4936192]
[1772216225727,0.00253886,1929.0,1928.2,0.4936192]
[1772216225895,0.00253886,1929.0,1928.5,0.4936192]
[1772216226297,0.00253886,1929.0,1928.7,0.4936192]
[1772216226862,0.00253886,1929.0,1928.8,0.4936192]
[1772216227119,0.00253886,1929.0,1928.5,1.789923]
[1772216227294,0.00253886,1929.0,1928.5,2.984923]
[1772216227696,0.00253886,1929.0,1928.6,0.4936192]
[1772216228402,0.46013002,1929.0,1928.3,1.196]
[1772216228606,0.46013002,1929.0,1928.1,2.13756685]
[1772216228806,0.46013002,1929.0,1928.1,2.49256685]
[1772216229202,0.46013002,1929.0,1928.1,1.29661296]
[1772216229406,0.46013002,1929.0,1928.1,1.196]
[1772216230125,0.46013002,1929.0,1927.7,5.18749783]
[1772216230126,0.46226482,1928.7,1927.8,1.76802041]
[1772216230418,1.75874358,1928.3,1927.7,1.29683085]
[1772216230619,1.75874358,1928.3,1927.7,1.76808878]
[1772216232316,1.29646434,1928.4,1927.7,1.76808878]
[1772216232520,1.75872916,1928.4,1927.7,2.96508878]
[1772216234029,1.75872916,1928.4,1927.8,0.0011]
[1772216234322,1.75972916,1928.4,1927.8,0.0011]
[1772216234631,0.46226482,1928.3,1927.8,0.0011]
[1772216236321,0.46226482,1928.1,1927.5,0.0011]
[1772216236627,0.46226482,1927.8,1927.5,0.0011]
[1772216238731,1.29688229,1927.7,1927.5,0.0011]
[1772216239209,0.46226482,1927.6,1927.1,0.0011]
[1772216239733,0.46226482,1927.8,1927.2,0.47125793]
[1772216239934,0.46226482,1927.7,1927.1,0.0011]
[1772216240437,1.29674775,1927.9,1927.2,0.47125793]
[1772216240729,0.46226482,1927.8,1927.1,1.29837643]
[1772216240937,1.29688229,1927.7,1927.1,1.76963436]
[1772216242327,1.75914711,1927.7,1927.1,1.76963436]
[1772216243243,1.75914711,1927.7,1927.1,2.96563436]
[1772216245345,0.46226482,1927.7,1927.2,0.47125793]
[1772216245547,1.29681502,1927.8,1927.2,0.47125793]
[1772216246054,1.75907984,1927.8,1927.2,0.47125793]
[1772216246419,1.75907984,1927.8,1927.2,0.47235793]
[1772216246620,0.001,1927.7,1927.2,0.47235793]
[1772216247963,0.46326482,1927.7,1927.2,0.47235793]
[1772216248119,0.46326482,1927.7,1927.2,0.0011]
[1772216250025,0.46226482,1927.5,1927.2,0.0011]
[1772216250842,0.46226482,1927.5,1927.1,0.0011]
[1772216251454,0.46226482,1927.5,1926.9,0.0011]
[1772216251455,0.46226482,1927.4,1926.9,0.0011]
[1772216252162,0.46226482,1927.2,1926.9,0.0011]
[1772216253046,1.29715145,1927.3,1926.9,0.0011]
[1772216253458,1.75941627,1927.3,1926.9,0.0011]
[1772216253662,0.46226482,1927.5,1926.9,0.47235793]
[1772216254188,1.29708415,1927.4,1926.9,1.76975861]
[1772216254329,1.75934897,1927.4,1926.9,0.47235793]
[1772216255437,0.46226482,1927.3,1926.9,0.0011]
[1772216255759,0.46226482,1927.2,1926.7,0.0011]
[1772216256870,1.29728607,1927.1,1926.7,0.0011]
[1772216257027,1.75955089,1927.1,1926.7,0.0011]
[1772216257766,0.46226482,1927.0,1926.7,0.0011]
[1772216258334,0.46226482,1927.0,1926.8,0.0011]
[1772216258738,0.46226482,1927.0,1926.5,0.0011]
[1772216258936,5.19014431,1927.2,1926.4,0.0011]
[1772216258937,1.29769011,1926.5,1926.4,0.0011]
[1772216259153,0.45012703,1926.6,1926.2,0.0011]
[1772216259372,0.45012703,1926.5,1926.3,0.0011]
[1772216259533,0.45122703,1926.5,1926.0,0.00153886]
[1772216259732,0.45012703,1926.3,1925.8,0.0011]
[1772216259935,1.4331,1926.5,1925.9,0.47544735]
[1772216259936,1.88212703,1926.5,1925.9,0.47544735]
[1772216260236,0.0011,1926.4,1925.9,0.47544735]
[1772216261036,1.29885747,1926.4,1925.9,0.47544735]
[1772216261245,0.0011,1926.4,1925.9,1.77352927]
[1772216261565,0.0011,1926.3,1925.8,0.45762553]
[1772216261866,0.49716346,1926.3,1925.8,0.0011]
[1772216262358,0.0011,1926.2,1925.8,0.0011]
[1772216262566,0.0011,1926.2,1925.8,1.75578124]
[1772216262741,0.49606346,1926.5,1925.9,0.45652553]
[1772216262945,0.0011,1926.4,1925.9,0.45652553]
[1772216263158,0.49716346,1926.4,1925.8,1.2992473]
[1772216263463,0.0011,1926.3,1925.8,1.29925023]
[1772216264569,0.0011,1926.3,1925.9,0.45652553]
[1772216264769,4.9055777,1927.2,1926.0,0.45652553]
[1772216264770,0.49760232,1927.0,1926.0,0.45652553]
[1772216264975,0.49760232,1927.0,1926.4,0.45652553]
[1772216264976,0.0011,1926.9,1926.4,0.45652553]
[1772216265156,0.001,1927.2,1926.6,0.45652553]
[1772216267069,0.001,1927.2,1926.8,0.45652553]
[1772216268758,0.001,1927.2,1926.6,1.7541047]
[1772216269074,0.001,1927.2,1926.7,1.65352553]
[1772216269568,0.001,1927.2,1926.8,1.29748806]
[1772216269951,0.001,1927.2,1926.7,2.95103851]
[1772216270271,0.001,1927.2,1926.9,0.0011]
[1772216270641,5.18856228,1927.7,1926.9,0.0011]
[1772216270642,0.001,1927.7,1926.9,0.45762553]
[1772216270837,1.29788619,1927.7,1926.9,0.45762553]
[1772216271906,0.001,1927.7,1927.1,0.45652553]
[1772216272077,0.49706346,1927.7,1927.1,0.45652553]
[1772216272240,0.49606346,1927.5,1926.9,1.1981]
[1772216273968,1.79314761,1927.4,1926.9,0.0011]
[1772216276260,1.29706529,1927.5,1926.9,0.45762553]
[1772216276573,1.79312875,1927.5,1926.9,0.45762553]
[1772216276958,0.49606346,1927.4,1926.9,0.0011]
[1772216278049,0.49606346,1927.2,1926.9,0.0011]
[1772216279407,1.79313231,1927.5,1926.9,0.45762553]
[1772216280189,0.49606346,1927.5,1927.0,1.29735339]
[1772216280484,1.29788849,1927.7,1927.1,0.45652553]
[1772216280656,0.49606346,1927.6,1927.1,0.45652553]
[1772216282278,0.001,1927.4,1927.1,1.75375552]
[1772216282498,0.001,1927.7,1927.2,0.45652553]
[1772216284279,0.001,1927.7,1927.4,0.45652553]
[1772216284483,0.49606346,1928.3,1927.6,0.45652553]
[1772216285482,1.79255347,1928.3,1927.6,0.45652553]
[1772216286279,1.7925472,1928.3,1927.6,0.45652553]
[1772216286456,1.7925472,1928.3,1927.7,1.29688229]
[1772216287880,0.001,1928.4,1927.8,0.45652553]
[1772216288057,0.001,1928.4,1928.0,0.45652553]
[1772216288454,0.001,1928.4,1928.1,1.29661324]
[1772216288859,0.001,1928.4,1928.1,1.75313877]
[1772216289383,0.49706346,1928.4,1928.0,1.199]
[1772216289582,0.49706346,1928.4,1927.6,5.18774712]
[1772216289583,0.49706346,1928.4,1927.8,1.199]
[1772216289768,0.49706346,1928.4,1927.7,1.199]
[1772216290486,0.49706346,1928.4,1927.7,1.66801421]
[1772216291198,0.45937263,1928.2,1927.7,1.66801421]
[1772216291363,0.45937263,1928.2,1927.7,1.199]
[1772216291795,0.45937263,1928.2,1927.6,1.199]
[1772216292092,0.45937263,1928.2,1927.6,1.66801421]
[1772216292675,0.45937263,1928.2,1927.7,0.46901421]
[1772216293290,1.75593735,1928.2,1927.7,1.76585916]
[1772216293667,0.001,1928.4,1927.8,0.46901421]
[1772216293982,0.46037263,1928.4,1927.8,0.46901421]
[1772216294489,0.001,1928.3,1927.8,0.46901421]
[1772216294991,0.001,1928.3,1927.9,1.199]
[1772216295798,0.46037263,1928.3,1927.7,5.18739851]
[1772216295967,0.46037263,1928.3,1927.3,0.0011]
[1772216296166,0.45937263,1927.7,1927.3,0.0011]
[1772216297895,1.29694957,1927.6,1927.3,0.0011]
[1772216298075,1.29674775,1927.9,1927.3,0.0011]
[1772216298273,0.45937263,1927.8,1927.3,0.0011]
[1772216300198,1.75625492,1927.7,1927.3,0.0011]
[1772216300576,0.45937263,1927.6,1927.3,0.0011]
[1772216303314,1.29701686,1927.5,1927.3,0.0011]
[1772216303474,1.75633578,1927.6,1927.3,0.0011]
[1772216305201,1.29696315,1927.6,1927.3,0.0011]
[1772216305981,5.1875573,1927.7,1927.3,0.0011]
[1772216306307,5.64692993,1927.7,1927.3,0.0011]
[1772216308000,5.64692993,1927.7,1927.4,0.0011]
[1772216308410,5.64792993,1927.7,1927.4,0.0011]
[1772216310178,0.001,1927.7,1927.4,0.48663667]
[1772216310599,1.29788421,1927.7,1927.4,0.48663667]
[1772216310921,1.29788421,1927.7,1927.4,0.0011]
[1772216310922,0.45937263,1927.6,1927.4,0.0011]
[1772216311084,2.45228885,1927.6,1927.0,0.00263886]
[1772216311288,0.45937263,1927.3,1926.6,0.0011]
[1772216311608,0.45937263,1927.1,1926.6,0.0011]
[1772216311816,0.45937263,1926.9,1926.2,1.193]
[1772216312185,0.45937263,1926.5,1926.0,0.00153886]
[1772216314318,0.45937263,1926.3,1926.0,0.00153886]
[1772216314610,0.45937263,1926.3,1925.8,0.0011]
[1772216316417,0.45937263,1926.3,1925.7,0.0011]
[1772216316418,1.29793998,1926.2,1925.7,0.0011]
[1772216316819,1.75731261,1926.2,1925.7,0.0011]
[1772216318003,1.29786459,1926.3,1925.7,0.48567755]
[1772216318321,5.19116605,1926.4,1925.7,1.78388028]
[1772216318711,1.75710339,1926.5,1925.8,1.67557755]
[1772216319233,1.75710339,1926.5,1925.8,1.191]
[1772216319234,0.45937263,1926.4,1925.8,1.191]
[1772216320321,0.45937263,1926.4,1925.8,1.1921]
[1772216320322,1.29782484,1926.3,1925.8,1.1921]
[1772216322303,1.29782484,1926.3,1925.8,2.49026023]
[1772216322817,1.29782484,1926.3,1925.8,1.1921]
[1772216324915,1.29782484,1926.3,1925.8,0.0011]
[1772216325715,0.001,1926.4,1925.8,0.45630788]
[1772216326197,1.29876385,1926.4,1925.8,0.45630788]
[1772216326396,1.7716391,1926.4,1925.8,0.0011]
[1772216326624,0.47287525,1926.3,1925.8,1.1931]
[1772216326795,0.47287525,1926.3,1925.8,0.0011]
[1772216327226,0.47287525,1926.1,1925.8,0.0011]
[1772216327520,1.29789222,1926.2,1925.8,0.0011]
[1772216327925,1.29782484,1926.3,1925.8,0.45630788]
[1772216328533,1.77070009,1926.3,1925.8,0.45630788]
[1772216328741,1.77070009,1926.3,1925.8,0.0011]
[1772216330039,0.47287525,1926.2,1925.8,0.0011]
[1772216331636,1.77083485,1926.1,1925.8,0.0011]
[1772216332542,1.77083485,1926.1,1925.9,0.0011]
[1772216333335,1.29892983,1926.2,1925.9,0.0011]
[1772216333524,0.001,1926.2,1925.9,0.0011]
[1772216335317,0.47287525,1926.1,1925.9,0.0011]
[1772216335946,1.29802699,1926.0,1925.9,0.0011]
[1772216338036,1.29802699,1926.0,1925.8,0.0011]
[1772216340731,0.001,1926.2,1925.8,0.0011]
[1772216340930,1.29889266,1926.2,1925.8,0.45630788]
[1772216341333,1.77176791,1926.2,1925.8,0.45630788]
[1772216341653,0.47287525,1926.1,1925.8,0.0011]
[1772216343052,1.29802699,1926.0,1925.8,0.0011]
[1772216343957,1.77083485,1926.1,1925.8,0.0011]
[1772216346131,1.77083485,1926.1,1925.9,0.0011]
[1772216347561,0.001,1926.4,1926.0,0.45520788]
[1772216347860,1.77029597,1926.9,1926.1,0.45520788]
[1772216348633,1.29894113,1927.0,1926.3,0.45520788]
[1772216349242,0.00153886,1927.0,1926.4,0.45520788]
[1772216349440,1.77080837,1927.7,1926.7,0.45520788]
[1772216349658,1.77080837,1927.7,1926.6,3.43547117]
[1772216349659,0.001,1927.7,1927.0,0.45520788]
[1772216349846,0.001,1927.7,1927.2,0.45520788]
[1772216350050,0.001,1927.7,1927.3,1.187]
[1772216350051,1.76833616,1927.7,1927.3,1.187]
[1772216350554,0.47144993,1927.7,1927.3,1.187]
[1772216350964,0.001,1927.7,1927.3,1.187]
[1772216351150,0.001,1927.7,1927.3,1.67057755]
[1772216351661,0.47144993,1927.7,1927.1,0.48357755]
[1772216351965,0.47144993,1927.7,1927.1,1.32457755]
[1772216352161,0.47144993,1927.7,1927.1,2.62186069]
[1772216352737,0.001,1927.7,1927.2,0.48357755]
[1772216353557,0.001,1927.7,1927.3,1.780729]
[1772216354150,0.47144993,1927.7,1927.3,1.187]
[1772216356268,0.001,1927.7,1927.3,2.96771084]
[1772216356837,0.001,1927.7,1927.3,1.78071084]
[1772216357042,0.001,1927.7,1927.4,1.189]
[1772216357444,1.29822474,1928.0,1927.5,0.48357755]
[1772216357656,1.29821995,1928.0,1927.5,0.48357755]
[1772216358449,1.29821995,1928.0,1927.4,1.189]
[1772216358655,0.001,1927.6,1927.2,1.67257755]
[1772216360239,0.001,1927.6,1927.3,0.48357755]
[1772216360545,0.00153886,1928.0,1927.5,0.48257755]
[1772216361367,0.00153886,1928.0,1927.6,1.19]
[1772216361964,0.00153886,1928.0,1927.7,0.48257755]
[1772216363468,0.00153886,1928.0,1927.6,2.48694845]
[1772216363641,0.47198879,1928.0,1927.6,1.19]
[1772216364169,0.47198879,1928.0,1927.4,1.19]
[1772216364744,0.47198879,1928.0,1927.2,1.2971712]
[1772216364963,0.47198879,1928.0,1927.3,1.19]
[1772216365854,1.76719768,1927.9,1927.3,2.48713517]
[1772216366082,0.47044993,1927.8,1927.3,2.48713517]
[1772216366279,0.47044993,1927.8,1926.8,0.48257755]
[1772216366482,0.47044993,1927.8,1926.9,1.19]
[1772216366483,0.47044993,1927.7,1926.9,1.19]
[1772216366783,0.47044993,1927.7,1926.9,1.67257755]
[1772216367862,0.47044993,1927.5,1927.0,1.189]
[1772216368253,0.47044993,1927.5,1927.0,2.48634681]
[1772216368453,0.47044993,1927.5,1927.0,2.48634611]
[1772216368886,0.47044993,1927.5,1927.0,2.4863486]
[1772216369666,0.47044993,1927.5,1927.0,1.189]
[1772216370581,1.76752889,1927.5,1927.0,1.189]
[1772216370889,0.47044993,1927.4,1926.9,1.19]
[1772216371074,0.47044993,1927.4,1926.7,1.191]
[1772216371977,0.47044993,1927.4,1927.3,0.0011]
[1772216372162,0.47044993,1927.4,1926.5,0.875]
[1772216372771,0.47044993,1927.2,1926.5,0.875]
[1772216373092,0.47044993,1927.2,1926.5,2.17267901]
[1772216373254,0.47044993,1927.2,1926.5,2.17268485]
[1772216373453,0.47044993,1927.2,1926.5,2.17268554]
[1772216373658,0.47044993,1927.2,1926.5,0.875]
[1772216373857,0.47044993,1927.1,1926.4,1.19]
[1772216374495,0.47044993,1927.1,1926.4,0.48367755]
[1772216374986,0.47044993,1927.3,1926.6,0.48367755]
[1772216376200,0.47044993,1927.3,1926.5,1.19]
[1772216376860,0.47044993,1927.1,1926.5,1.19]
[1772216377677,0.47044993,1927.1,1926.4,1.2977524]
[1772216377878,0.47044993,1927.1,1926.5,1.189]
[1772216379094,1.29733443,1927.1,1926.5,2.48668157]
[1772216379294,1.29733443,1927.1,1926.5,2.97035912]
[1772216379487,1.29733443,1927.1,1926.5,1.67267755]
[1772216379867,0.45630561,1927.0,1926.5,1.189]
[1772216380068,0.45630561,1927.0,1926.5,2.48668945]
[1772216382106,1.29742072,1926.9,1926.5,1.189]
[1772216382292,1.7741607,1926.9,1926.5,1.189]
[1772216383099,0.47673998,1926.8,1926.5,1.189]
[1772216383872,0.47673998,1926.8,1926.6,0.0011]
[1772216385106,1.77424051,1926.8,1926.6,0.0011]
[1772216385503,0.47673998,1926.8,1926.6,0.0011]
[1772216387184,1.29745967,1926.9,1926.6,0.0011]
[1772216388215,1.77419965,1926.9,1926.6,0.0011]
[1772216390298,0.47673998,1926.8,1926.6,0.0011]
[1772216391106,1.29749642,1926.8,1926.6,0.0011]
[1772216391315,0.47673998,1926.7,1926.6,0.0011]
[1772216392204,1.77420713,1926.9,1926.6,0.0011]
[1772216392788,0.47673998,1926.9,1926.6,0.0011]
[1772216393318,1.77416072,1926.9,1926.6,0.0011]
[1772216394791,0.47673998,1926.8,1926.6,0.0011]
[1772216394994,0.47673998,1926.8,1926.5,0.0011]
[1772216395415,0.47673998,1926.6,1926.3,0.0011]
[1772216395787,0.47673998,1926.5,1926.0,1.19553886]
[1772216395989,0.47673998,1926.5,1926.0,0.00153886]
[1772216397395,1.29775747,1926.4,1926.0,0.00153886]
[1772216397604,0.47673998,1926.3,1926.0,0.00153886]
[1772216399570,0.47673998,1926.5,1926.0,0.48245322]
[1772216399902,1.77443655,1926.5,1926.0,0.48245322]
[1772216400295,0.47673998,1926.4,1926.0,0.00153886]
[1772216401110,1.29769657,1926.5,1926.0,0.48245322]
[1772216401530,0.47673998,1926.5,1926.0,0.48245322]
[1772216401904,0.47673998,1926.5,1926.0,0.00153886]
[1772216403542,1.77449745,1926.4,1926.0,0.00153886]
[1772216404547,0.47673998,1926.3,1926.0,0.00153886]
[1772216406627,1.77462998,1926.3,1926.0,0.00153886]
[1772216406831,0.47673998,1926.2,1926.0,0.00153886]
[1772216407035,0.47673998,1926.2,1925.9,0.0011]
[1772216407955,0.47673998,1926.1,1925.8,0.0011]
[1772216408124,1.29789,1926.3,1925.6,0.0011]
[1772216408125,0.47673998,1925.7,1925.6,0.0011]
[1772216408550,0.47673998,1926.1,1925.6,0.48201436]
[1772216408747,0.47673998,1926.2,1925.7,1.77913862]
[1772216409046,0.47673998,1926.2,1925.7,0.48091436]
[1772216409931,0.47673998,1926.2,1926.0,0.0011]
[1772216410835,1.29876505,1926.4,1926.0,0.47981329]
[1772216411042,0.001,1926.4,1926.0,0.47981329]
[1772216411267,1.29877288,1926.4,1926.0,0.47981329]
[1772216411472,1.29877288,1926.4,1926.0,0.0011]
[1772216411770,1.78517471,1926.4,1926.0,0.0011]
[1772216412560,0.48640183,1926.3,1926.0,0.0011]
[1772216412734,1.29789222,1926.2,1926.0,0.0011]
[1772216413139,0.48640183,1926.1,1926.0,0.0011]
[1772216413366,0.48640183,1926.1,1925.7,0.0011]
[1772216413771,0.001,1926.4,1925.8,0.47871329]
[1772216414069,0.48640183,1926.3,1925.7,1.77798673]
[1772216414368,0.48640183,1926.2,1925.7,0.0011]
[1772216414601,0.48640183,1926.0,1925.6,0.0011]
[1772216414751,0.48640183,1926.0,1925.1,5.1944538]
[1772216414752,0.48640183,1925.6,1924.5,5.67482979]
[1772216415068,0.48640183,1925.6,1924.7,0.47871329]
[1772216415367,0.48640183,1925.6,1925.0,0.94453886]
[1772216415678,0.48640183,1925.3,1925.0,0.00153886]
[1772216416746,0.48640183,1925.5,1925.0,0.00153886]
[1772216416946,0.48640183,1925.7,1925.0,0.48025215]
[1772216418861,0.48640183,1925.7,1925.1,1.29863383]
[1772216419052,0.48640183,1926.0,1925.3,0.47871329]
[1772216420967,0.48640183,1926.0,1925.4,1.29843149]
[1772216421177,0.48640183,1926.0,1925.4,1.77714478]
[1772216421758,0.48640183,1926.2,1925.5,0.47871329]
[1772216423273,0.48640183,1926.2,1925.6,1.29829663]
[1772216423574,0.48640183,1926.2,1925.7,1.192]
[1772216423771,0.001,1926.4,1925.8,0.47871329]
[1772216424172,0.48740183,1926.4,1925.9,1.193]
[1772216424348,1.7851629,1926.4,1925.9,1.193]
[1772216424550,0.48640183,1926.3,1925.9,1.193]
[1772216425373,0.48640183,1926.3,1926.0,1.29802699]
[1772216425673,0.48640183,1926.3,1925.9,2.49104133]
[1772216426774,0.001,1926.4,1926.1,0.47871329]
[1772216427074,0.001,1926.4,1926.2,1.194]
[1772216427646,0.001,1926.4,1926.2,2.49184165]
[1772216428478,0.48640183,1926.8,1926.2,2.49184165]
[1772216428645,0.48640183,1926.8,1926.2,2.97055494]
[1772216428843,0.48640183,1926.9,1926.3,0.47871329]
[1772216429059,0.48640183,1926.9,1926.2,2.49184165]
[1772216429453,0.48640183,1926.9,1926.2,2.97055494]
[1772216430468,0.48640183,1926.8,1926.2,2.97055494]
[1772216431658,0.48894069,1927.0,1926.3,0.47871329]
[1772216432261,0.00253886,1927.0,1926.5,0.47871329]
[1772216432455,0.00253886,1927.0,1926.6,1.67571329]
[1772216432658,0.00253886,1927.0,1926.6,1.197]
[1772216432846,0.00253886,1927.0,1926.7,0.47871329]
[1772216433043,0.48640183,1927.3,1926.7,0.47871329]
[1772216433779,0.48640183,1927.5,1926.8,2.93007062]
[1772216433945,0.48640183,1927.5,1926.9,0.47871329]
[1772216434146,0.48640183,1927.5,1927.0,1.197]
[1772216434473,0.48640183,1927.4,1927.1,1.072]
[1772216434857,0.48640183,1927.4,1926.8,1.197]
[1772216435158,0.001,1927.2,1926.8,1.197]
[1772216435482,0.48740183,1927.2,1926.8,1.197]
[1772216435689,0.48640183,1927.1,1926.5,1.197]
[1772216436547,0.001,1927.2,1926.5,2.49466253]
[1772216436748,0.48640183,1926.9,1926.5,2.49466253]
[1772216437250,0.48640183,1927.1,1926.5,2.49466253]
[1772216438090,0.48640183,1927.1,1926.5,1.29766253]
[1772216438294,0.48640183,1927.1,1926.6,1.197]
[1772216438465,0.48640183,1927.1,1926.5,1.29766253]
[1772216438665,0.48640183,1927.1,1926.6,1.197]
[1772216439354,0.46249122,1926.9,1926.6,1.197]
[1772216440774,0.46249122,1926.9,1926.3,5.66993858]
[1772216440982,0.46249122,1926.9,1926.4,1.198]
[1772216441357,1.29747157,1926.9,1926.4,2.49573951]
[1772216441558,0.46449371,1926.8,1926.4,2.49573951]
[1772216441758,0.001,1927.2,1926.5,0.47326492]
[1772216441959,0.46549371,1927.2,1926.5,0.47326492]
[1772216442158,1.76271571,1927.2,1926.5,0.47326492]
[1772216442379,0.001,1927.2,1926.5,0.47326492]
[1772216443961,0.001,1927.2,1926.7,0.47326492]
[1772216444163,0.001,1927.2,1926.8,1.198]
[1772216444653,0.46449371,1927.7,1926.9,0.47326492]
[1772216444769,0.46449371,1927.7,1926.8,1.198]
[1772216444770,0.46449371,1927.7,1927.1,0.47326492]
[1772216444962,0.46449371,1927.7,1927.2,1.199]
[1772216445875,0.46449371,1927.7,1927.1,0.841]
[1772216445876,0.46449371,1927.5,1927.1,0.841]
[1772216446601,0.46449371,1927.5,1926.6,1.29762275]
[1772216446799,0.46449371,1927.5,1926.8,1.198]
[1772216447492,0.46449371,1927.5,1926.8,1.1991]
[1772216448100,1.76151324,1927.5,1926.9,1.29742072]
[1772216448469,0.46449371,1927.4,1926.9,1.29742072]
[1772216448686,0.46449371,1927.4,1926.8,0.0011]
[1772216448884,0.46449371,1927.4,1926.9,1.198]
[1772216449971,0.46449371,1927.3,1926.9,1.198]
[1772216450894,0.46449371,1927.3,1926.9,2.4954094]
[1772216451195,5.18822587,1927.5,1926.9,2.4954094]
[1772216451196,0.46449371,1927.5,1926.9,2.4954094]
[1772216452086,1.76155354,1927.5,1926.9,2.4954094]
[1772216453591,0.46449371,1927.5,1926.9,2.4954094]
[1772216453991,1.76151531,1927.5,1926.9,2.4954094]
[1772216454207,0.46449371,1927.5,1926.9,2.4954094]
[1772216454401,1.76151517,1927.5,1926.9,2.4954094]
[1772216455682,0.46449371,1927.4,1926.9,1.2974094]
[1772216455915,0.46449371,1927.4,1927.0,1.201]
[1772216456786,0.46449371,1927.4,1927.0,2.49832521]
[1772216457388,1.76158258,1927.4,1927.0,2.49832521]
[1772216457702,0.46449371,1927.3,1926.8,1.77180153]
[1772216457902,0.46449371,1927.3,1926.9,1.203]
[1772216459737,1.76166147,1927.3,1926.8,1.29858133]
[1772216459899,1.76166147,1927.3,1927.0,1.2041]
[1772216460222,1.76266147,1927.3,1927.0,1.2041]
[1772216460422,0.46449371,1927.2,1926.9,0.0011]
[1772216460799,0.46449371,1927.2,1926.8,1.2051]
[1772216460800,0.46449371,1927.2,1926.8,0.0011]
[1772216460995,0.46449371,1927.2,1926.8,0.8421]
[1772216461401,0.46449371,1927.2,1926.7,0.0011]
[1772216461732,0.46449371,1927.0,1926.7,0.0011]
[1772216461923,0.46449371,1927.0,1926.7,1.2041]
[1772216463931,1.761762,1927.2,1926.7,2.50165363]
[1772216464116,0.001,1927.3,1926.8,0.47326492]
[1772216464598,0.001,1927.6,1927.0,0.47326492]
[1772216464802,0.001,1927.6,1927.1,1.67626492]
[1772216465503,1.29795656,1927.6,1927.1,0.47326492]
[1772216465802,1.76245027,1927.6,1927.2,1.203]
[1772216466529,0.46549371,1927.6,1927.2,1.203]
[1772216467920,1.76244763,1927.6,1927.2,1.203]
[1772216468433,1.76244763,1927.6,1927.2,2.50021482]
[1772216468636,0.46549371,1927.6,1927.2,2.50021482]
[1772216468832,1.76245347,1927.6,1926.9,0.47326492]
[1772216469037,0.46449371,1927.5,1927.0,2.50235339]
[1772216471034,1.76151352,1927.5,1927.0,2.50235339]
[1772216471639,0.46449371,1927.5,1927.0,2.50235339]
[1772216471932,0.001,1927.6,1927.1,0.46041941]
[1772216472515,0.001,1927.5,1927.1,0.46041941]
[1772216473935,1.29775142,1927.9,1927.2,0.46041941]
[1772216474144,0.001,1927.9,1927.4,0.46041941]
[1772216474340,0.47375484,1927.9,1926.9,0.46041941]
[1772216474546,0.47375484,1927.9,1927.0,1.66841941]
[1772216474940,0.47375484,1927.9,1927.1,0.46041941]
[1772216476153,1.29681502,1927.8,1927.2,1.29721876]
[1772216476342,1.29681502,1927.8,1927.2,1.75763817]
[1772216477046,0.47375484,1927.9,1927.3,0.46041941]
[1772216477248,0.001,1927.9,1927.5,0.46041941]
[1772216479254,0.001,1927.9,1927.3,5.64885049]
[1772216479426,0.00153886,1928.0,1927.6,0.46041941]
[1772216480437,0.00153886,1928.0,1927.6,1.66841941]
[1772216480952,0.00153886,1928.0,1927.2,5.18866732]
[1772216480953,1.76950259,1927.9,1927.5,1.208]
[1772216481151,0.47275484,1927.8,1927.5,1.208]